{"text_format":"1","workbook":"xlsx","n_sheets":5,"sheets":["BarcodeGenerator","Interventions","Settings","Groups","MyBarcodeList"],"not_rendered":{"charts":0,"images":0,"macros":1,"external_links":0,"defined_names":1,"comments":0,"pivot_tables":0},"unopened":[],"bounds":{"document_bytes":16777216,"sheet_cells":100000,"rows_first":2000,"rows_last":500,"rows_between":2000,"halvings":0,"cell_chars":16384,"cell_head_chars":4096},"cells_cut":0,"cells_raw":0,"read":"whole","date_system":"1900"}

{"sheet":"BarcodeGenerator","index":0,"n_rows":35,"n_cols":3,"rows_kept":35,"cut":false,"hidden":false,"merged":[[0,0,0,2]]}
["Barcode Generator"]
[]
["Select intervention: "]
[]
["Select setting: "]
[]
["Select group:"]
[]
["Barcode: ",{"$f":"IFERROR(CONCATENATE(\"*\",(VLOOKUP(B3,Interventions!A3:B66,2,FALSE)),\"-\",IF(NOT(ISBLANK(B5)),VLOOKUP(B5,Settings!A3:C46,2,FALSE),\"0\"),\"-\",IF(NOT(ISBLANK(B7)),VLOOKUP(B7,Groups!A3:B501,2,FALSE),\"0\"),\"*\"),\"\")","v":""}]
[]
[]
[]
[]
[]
[]
[]
[]
[]
[]
[]
[]
[]
[]
[]
[]
[]
[]
[]
[]
[]
[]
[]
[]
[]
[null,null,"Updated: 7/20/2023"]

{"sheet":"Interventions","index":1,"n_rows":66,"n_cols":2,"rows_kept":66,"cut":false,"hidden":true,"merged":[]}
["Intervention Name","ID"]
[]
["13 Moons of Anishinaabe Nutrition ",2]
["Around the Table",64]
["Choose Health: Food, Fun, and Fitness",55]
["Color Me Healthy",3]
["Cooking is a Snap",56]
["Cooking Matters at the Store",4]
["Cooking Matters for Adults",5]
["Cooking Matters for Childcare Professionals",6]
["Cooking Matters for Families",7]
["Cooking Matters for Kids",8]
["Cooking Matters for Parents",9]
["Cooking Matters for Teens",10]
["Cooking with Kids",12]
["Dig In",13]
["Discover MyPlate",14]
["Eat Healthy",15]
["Eat Healthy, Be Active",16]
["Eat Smart, Live Strong",17]
["Eat Well Play Hard",18]
["Eating Smart, Being Active",19]
["Empowering Youth",20]
["Energize Your Life: Gardening for a Healthier You",54]
["Faithful Families",21]
["Families Eating Smart and Moving More",68]
["Farmers Market Food Navigator",65]
["Food Smarts Adult",69]
["Food Smarts for Food Waste",71]
["Food Smarts Kids",70]
["Fork & the Road",72]
["Fresh Conversations",22]
["Grow It, Try It, Like It",23]
["Growing Healthy Habits",24]
["Harvest for Healthy Kids ",49]
["Health Matters",25]
["Healthy Choices for Everybody",58]
["Healthy Eating Active Living (HEAL) Toolkit",50]
["Healthy Families Start with You",27]
["Healthy Schools, Healthy Communities",28]
["Hip Hop to Health Jr.",47]
["Integrated Nutrition Education Program",51]
["Just Say Yes to Fruits and Veggies",29]
["Kids in the Kitchen",30]
["Learning About Nutrition Through Activities (LANA)",31]
["Let’s Cook",32]
["Linking Lessons - Schools",33]
["Linking Lessons in the Community",35]
["Michigan Model for Health",36]
["MyGarden",37]
["Nutrition to Grow On",38]
["Nutrition Voyage",39]
["PE-Nut (only select if all PE-Nut components are included)",40]
["Pick a Better Snack",48]
["Planet Health",41]
["Rec-Connect",42]
["ReFresh",43]
["Regie’s Rainbow Adventure",44]
["Simply Good Eating for English Language Learners",45]
["Taste, Move, and Learn. A Program for Learners with Cognitive Disabilities",34]
["Teen Battle Chef",62]
["Text2BHealthy",63]
["The Learning Kitchen Adults",59]
["The Learning Kitchen Young Adults",60]
["The Learning Kitchen Youth",61]
["TWIGS - Youth Gardening and Healthy Eating",67]

{"sheet":"Settings","index":2,"n_rows":46,"n_cols":3,"rows_kept":46,"cut":false,"hidden":true,"merged":[]}
["Setting","Code","Domain"]
[]
["Eat: congregate meal site/senior nutrition center","A","Eat"]
["Eat: fast food chain site","B","Eat"]
["Eat: mobile vending/food truck site","C","Eat"]
["Eat: restaurant site","D","Eat"]
["Eat: soup kitchen site","E","Eat"]
["Eat: USDA summer meal site","F","Eat"]
["Eat: other eating site","O1","Eat"]
["Learn: before/after school program site","G","Learn"]
["Learn: early care and education facility site","H","Learn"]
["Learn: extension office site","I","Learn"]
["Learn: family resource center site","J","Learn"]
["Learn: library site","K","Learn"]
["Learn: mobile education site","L","Learn"]
["Learn: school (K-12, elementary, middle, and high)","M","Learn"]
["Learn: school (colleges and universities)","N","Learn"]
["Learn: WIC clinic site","O","Learn"]
["Learn: other learning site","O2","Learn"]
["Live: emergency shelter/temp housing site","P","Live"]
["Live: faith-based site","Q","Live"]
["Live: health care clinic/hospital site","R","Live"]
["Live: individual home ","T","Live"]
["Live: public housing site (includes housing for seniors and disabled individuals)","KK","Live"]
["Live: group living arrangement/home","U","Live"]
["Live: Residential treatment center site","JJ","Live"]
["Live: Indian reservation site","S","Live"]
["Live: other site where people live or live nearby","O3","Live"]
["Play: bicycle and/or walking path","V","Play"]
["Play: community and/or rec center","W","Play"]
["Play: State/county fairground site","X","Play"]
["Play: garden (community/school) site","Y","Play"]
["Play: park and open space site","Z","Play"]
["Play: senior center","LL","Play"]
["Play: other site where people go to play","O4","Play"]
["Shop: farmers market site","AA","Shop"]
["Shop: food assistance site (e.g., food banks, food pantries, food shelves)","BB","Shop"]
["Shop: food distribution site (e.g., FDPIR, TEFAP CSFP)","CC","Shop"]
["Shop: small food store site (up to 3 registers)","DD","Shop"]
["Shop: large food store site (four or more registers)","EE","Shop"]
["Shop: other site where people go to shop for or access food","O5","Shop"]
["Work: adult education, job training, TANF, and veteran services site","FF","Work"]
["Work: military base site","GG","Work"]
["Work: SNAP office site","HH","Work"]
["Work: work site with low wage workers","II","Work"]
["Work: other site where people go to work","O6","Work"]

{"sheet":"Groups","index":3,"n_rows":501,"n_cols":2,"rows_kept":501,"cut":false,"hidden":false,"merged":[]}
["Group name (Enter the name of each group in the yellow section below)","ID"]
[]
[null,1]
[null,{"$f":"B3+1","v":2}]
[null,{"$f":"B4+1","v":3}]
[null,4]
[null,5]
[null,6]
[null,7]
[null,8]
[null,9]
[null,10]
[null,11]
[null,12]
[null,13]
[null,14]
[null,15]
[null,16]
[null,17]
[null,18]
[null,19]
[null,20]
[null,21]
[null,22]
[null,23]
[null,24]
[null,25]
[null,26]
[null,27]
[null,28]
[null,29]
[null,30]
[null,31]
[null,32]
[null,33]
[null,34]
[null,35]
[null,36]
[null,37]
[null,38]
[null,39]
[null,40]
[null,41]
[null,42]
[null,43]
[null,44]
[null,45]
[null,46]
[null,47]
[null,48]
[null,49]
[null,50]
[null,51]
[null,52]
[null,53]
[null,54]
[null,55]
[null,56]
[null,57]
[null,58]
[null,59]
[null,60]
[null,61]
[null,62]
[null,63]
[null,64]
[null,65]
[null,66]
[null,{"$f":"B68+1","v":67}]
[null,68]
[null,69]
[null,70]
[null,71]
[null,72]
[null,73]
[null,74]
[null,75]
[null,76]
[null,77]
[null,78]
[null,79]
[null,80]
[null,81]
[null,82]
[null,83]
[null,84]
[null,85]
[null,86]
[null,87]
[null,88]
[null,89]
[null,90]
[null,91]
[null,92]
[null,93]
[null,94]
[null,95]
[null,96]
[null,97]
[null,98]
[null,99]
[null,100]
[null,101]
[null,102]
[null,103]
[null,104]
[null,105]
[null,106]
[null,107]
[null,108]
[null,109]
[null,110]
[null,111]
[null,112]
[null,113]
[null,114]
[null,115]
[null,116]
[null,117]
[null,118]
[null,119]
[null,120]
[null,121]
[null,122]
[null,123]
[null,124]
[null,125]
[null,126]
[null,127]
[null,128]
[null,129]
[null,130]
[null,{"$f":"B132+1","v":131}]
[null,132]
[null,133]
[null,134]
[null,135]
[null,136]
[null,137]
[null,138]
[null,139]
[null,140]
[null,141]
[null,142]
[null,143]
[null,144]
[null,145]
[null,146]
[null,147]
[null,148]
[null,149]
[null,150]
[null,151]
[null,152]
[null,153]
[null,154]
[null,155]
[null,156]
[null,157]
[null,158]
[null,159]
[null,160]
[null,161]
[null,162]
[null,163]
[null,164]
[null,165]
[null,166]
[null,167]
[null,168]
[null,169]
[null,170]
[null,171]
[null,172]
[null,173]
[null,174]
[null,175]
[null,176]
[null,177]
[null,178]
[null,179]
[null,180]
[null,181]
[null,182]
[null,183]
[null,184]
[null,185]
[null,186]
[null,187]
[null,188]
[null,189]
[null,190]
[null,191]
[null,192]
[null,193]
[null,194]
[null,{"$f":"B196+1","v":195}]
[null,196]
[null,197]
[null,198]
[null,199]
[null,200]
[null,201]
[null,202]
[null,203]
[null,204]
[null,205]
[null,206]
[null,207]
[null,208]
[null,209]
[null,210]
[null,211]
[null,212]
[null,213]
[null,214]
[null,215]
[null,216]
[null,217]
[null,218]
[null,219]
[null,220]
[null,221]
[null,222]
[null,223]
[null,224]
[null,225]
[null,226]
[null,227]
[null,228]
[null,229]
[null,230]
[null,231]
[null,232]
[null,233]
[null,234]
[null,235]
[null,236]
[null,237]
[null,238]
[null,239]
[null,240]
[null,241]
[null,242]
[null,243]
[null,244]
[null,245]
[null,246]
[null,247]
[null,248]
[null,249]
[null,250]
[null,251]
[null,252]
[null,253]
[null,254]
[null,255]
[null,256]
[null,257]
[null,258]
[null,{"$f":"B260+1","v":259}]
[null,260]
[null,261]
[null,262]
[null,263]
[null,264]
[null,265]
[null,266]
[null,267]
[null,268]
[null,269]
[null,270]
[null,271]
[null,272]
[null,273]
[null,274]
[null,275]
[null,276]
[null,277]
[null,278]
[null,279]
[null,280]
[null,281]
[null,282]
[null,283]
[null,284]
[null,285]
[null,286]
[null,287]
[null,288]
[null,289]
[null,290]
[null,291]
[null,292]
[null,293]
[null,294]
[null,295]
[null,296]
[null,297]
[null,298]
[null,299]
[null,{"$f":"B301+1","v":300}]
[null,{"$f":"B302+1","v":301}]
[null,302]
[null,303]
[null,304]
[null,305]
[null,306]
[null,307]
[null,308]
[null,309]
[null,310]
[null,311]
[null,312]
[null,313]
[null,314]
[null,315]
[null,316]
[null,317]
[null,318]
[null,319]
[null,320]
[null,321]
[null,322]
[null,323]
[null,324]
[null,325]
[null,326]
[null,327]
[null,328]
[null,329]
[null,330]
[null,331]
[null,332]
[null,333]
[null,334]
[null,335]
[null,336]
[null,337]
[null,338]
[null,339]
[null,340]
[null,341]
[null,342]
[null,343]
[null,344]
[null,345]
[null,346]
[null,347]
[null,348]
[null,349]
[null,350]
[null,351]
[null,352]
[null,353]
[null,354]
[null,355]
[null,356]
[null,357]
[null,358]
[null,359]
[null,360]
[null,361]
[null,362]
[null,363]
[null,364]
[null,{"$f":"B366+1","v":365}]
[null,366]
[null,367]
[null,368]
[null,369]
[null,370]
[null,371]
[null,372]
[null,373]
[null,374]
[null,375]
[null,376]
[null,377]
[null,378]
[null,379]
[null,380]
[null,381]
[null,382]
[null,383]
[null,384]
[null,385]
[null,386]
[null,387]
[null,388]
[null,389]
[null,390]
[null,391]
[null,392]
[null,393]
[null,394]
[null,395]
[null,396]
[null,397]
[null,398]
[null,399]
[null,400]
[null,401]
[null,402]
[null,403]
[null,404]
[null,405]
[null,406]
[null,407]
[null,408]
[null,409]
[null,410]
[null,411]
[null,412]
[null,413]
[null,414]
[null,415]
[null,416]
[null,417]
[null,418]
[null,419]
[null,420]
[null,421]
[null,422]
[null,423]
[null,424]
[null,425]
[null,426]
[null,427]
[null,428]
[null,{"$f":"B430+1","v":429}]
[null,430]
[null,431]
[null,432]
[null,433]
[null,434]
[null,435]
[null,436]
[null,437]
[null,438]
[null,439]
[null,440]
[null,441]
[null,442]
[null,443]
[null,444]
[null,445]
[null,446]
[null,447]
[null,448]
[null,449]
[null,450]
[null,451]
[null,452]
[null,453]
[null,454]
[null,455]
[null,456]
[null,457]
[null,458]
[null,459]
[null,460]
[null,461]
[null,462]
[null,463]
[null,464]
[null,465]
[null,466]
[null,467]
[null,468]
[null,469]
[null,470]
[null,471]
[null,472]
[null,473]
[null,474]
[null,475]
[null,476]
[null,477]
[null,478]
[null,479]
[null,480]
[null,481]
[null,482]
[null,483]
[null,484]
[null,485]
[null,486]
[null,487]
[null,488]
[null,489]
[null,490]
[null,491]
[null,492]
[null,{"$f":"B494+1","v":493}]
[null,494]
[null,495]
[null,496]
[null,497]
[null,498]
[null,499]

{"sheet":"MyBarcodeList","index":4,"n_rows":1,"n_cols":4,"rows_kept":1,"cut":false,"hidden":false,"merged":[]}
["Intervention","Setting","Group","Barcode"]